[Event "USA Championship Women 2022"]
[Site "Saint Louis"]
[Date "2022.10.13"]
[Round "8.5"]
[White "Krush, Irina"]
[Black "Morris-Suzuki, Sophie"]
[Result "1/2-1/2"]
[ECO "A34"]
[WhiteElo "2432"]
[BlackElo "2126"]
[Annotator "TA"]
[PlyCount "93"]
[EventDate "2022.09.05"]
[EventType "tourn"]
[EventCountry "USA"]
[SourceTitle "playchess.com"]
[Source "ChessBase"]
[SourceQuality "1"]
[TimeControl "40/5400+30:1800+30"]

{[%evp 15,93,5,13,0,40,38,29,43,44,41,61,49,54,37,41,34,30,35,41,44,128,125,112,125,116,116,122,104,198,181,170,87,91,72,96,21,21,14,27,19,18,0,0,0,0,0,0,0,0,0,0,0,0,0,0,0,0,0,0,0,0,0,0,0,0,0,0,0,7,0,0,0,0,0,0,0,0,0,0,0]} 1. c4 {[%emt 0:01:27]} c5 {[%emt 0:00:14]} 2. Nf3 {[%emt 0:00:09]} Nf6 {[%emt 0:00:17]} 3. Nc3 {[%emt 0:00:13]} d5 {[%emt 0:00:17]} 4. cxd5 {[%emt 0:00:19]} Nxd5 {[%emt 0:00:14]} 5. g3 {[%emt 0:02:45]} Nc6 {[%emt 0:00:13]} 6. Bg2 {[%emt 0:00:08]} Nc7 {[%emt 0:00:18]} 7. O-O {[%emt 0:00:43]} e5 {[%emt 0:00:13]} 8. a3 {[%emt 0:00:51]} f6 {[%emt 0:03:43]} 9. e3 {[%emt 0:12:21] A34: Symmetrical English: 2 Nc3, lines with ...d5.} Be7 {[%emt 0:04:51]} 10. d4 {[%emt 0:00:46]} cxd4 {[%emt 0:03:24]} 11. exd4 {[%emt 0:00:03] White has an edge.} exd4 {[%emt 0:03:23]} 12. Ne2 {[%emt 0:01:23]} Ne6 {[%emt 0:02:54]} 13. b4 {[%emt 0:06:18][%mdl 1024] White has compensation.} d3 {[%emt 0:03:27]} 14. Nc3 {[%emt 0:08:56]} O-O $1 {[%emt 0:08:35] [#]} 15. Qb3 $146 {[%emt 0:09:52]} ({Predecessor:} 15. Bb2 Kh8 16. Ne1 Ne5 17. Nd5 d2 18. Qxd2 Nc4 19. Qe2 Nxb2 20. Qxb2 Bd6 21. Nf3 {1-0 (64) Wang,Y (2684)-Corrales Jimenez,F (2559) Chess.com INT 2019}) 15... Kh8 $1 {[%emt 0:01:24]} 16. Nd5 {[%emt 0:00:07]} a5 {[%emt 0:03:20]} 17. Be3 {[%emt 0:02:34]} Nc7 {[%emt 0:01:40]} (17... axb4 $14 18. axb4 Rxa1 19. Rxa1 Bd6) 18. Nxc7 $1 $16 {[%emt 0:08:10] White has more active pieces. The black rooks are badly placed.} Qxc7 {[%emt 0:00:18]} 19. b5 {[%emt 0:00:10]} ({Much weaker is} 19. Qxd3 $6 axb4 20. axb4 Rxa1 21. Rxa1 Nxb4 $11) 19... Ne5 {[%emt 0:01:32]} 20. Nxe5 {[%emt 0:04:32]} Qxe5 {[%emt 0:00:32]} 21. Rfe1 $1 {[%emt 0:09:49]} a4 {[%emt 0:22:31]} (21... Bd7 $16) 22. Qxd3 $18 {[%emt 0:00:58]} Bf5 {[%emt 0:00:11] [#]} 23. Qf1 {[%emt 0:04:59]} (23. Qc4 $1 $18) 23... Qc3 $16 {[%emt 0:12:04]} 24. Bxb7 {[%emt 0:00:37]} Rab8 {[%emt 0:00:23] [#]} 25. Bc6 {[%emt 0:01:51]} (25. Bd2 $1 $16 Qxd2 26. Rxe7) 25... Bd3 $11 {[%emt 0:06:18]} 26. Qh3 {[%emt 0:02:16]} Bxa3 {[%emt 0:03:29]} 27. Bf4 {[%emt 0:03:16]} Rbd8 {[%emt 0:05:27][%cal Bb8d8,Bd8c8,Bc8c7][%mdl 32] aiming for ...Bb2. The position is equal.} ({Don't play} 27... Bb2 28. Rad1 Rbd8 29. Bc7 $14) 28. Bc7 {[%emt 0:06:57]} Rc8 {[%emt 0:01:32]} 29. Qd7 {[%emt 0:00:08] Hoping for b6.} Bxb5 {[%emt 0:07:24]} 30. Bxb5 {[%emt 0:00:27] Strongly threatening Bb6.} Rxc7 {[%emt 0:00:15]} 31. Qd1 {[%emt 0:01:27]} Bc5 {[%emt 0:02:26]} 32. Bxa4 {[%emt 0:02:07]} Qd4 {[%emt 0:00:09]} 33. Qxd4 {[%emt 0:07:23]} Bxd4 {[%emt 0:00:02]} 34. Rac1 {[%emt 0:00:34]} Rxc1 {[%emt 0:00:39]} 35. Rxc1 {[%emt 0:00:02][%mdl 4096] Endgame KRB-KRB} Be5 {[%emt 0:00:48]} 36. Bd7 {[%emt 0:00:21]} Rd8 {[%emt 0:00:15]} 37. Rc8 {[%emt 0:00:09]} Rxc8 {[%emt 0:00:04]} 38. Bxc8 {[%emt 0:00:06] KB-KB} Kg8 {[%emt 0:00:09]} 39. Be6+ {[%emt 0:00:10]} Kf8 {[%emt 0:00:07]} 40. Kg2 {[%emt 0:00:09]} g5 {[%emt 0:00:31]} 41. Bf5 {[%emt 0:30:29]} h6 {[%emt 0:30:13]} 42. h3 {[%emt 0:01:18]} Kg7 {[%emt 0:00:13]} 43. Be4 {[%emt 0:00:37]} Bd6 {[%emt 0:00:11]} 44. Bf5 {[%emt 0:00:06]} Be5 {[%emt 0:00:07]} 45. Be4 {[%emt 0:00:06]} Bd6 {[%emt 0:00:05]} 46. Bf5 {[%emt 0:00:08]} Be5 {[%emt 0:00:07]} 47. Be4 {[%emt 0:00:33] Weighted Error Value: White=0.10 (very precise) /Black=0.09 (flawless)} 1/2-1/2

[Event "USA Championship Women 2022"]
[Site "Saint Louis"]
[Date "2022.10.13"]
[Round "8.6"]
[White "Lee, Megan"]
[Black "Eswaran, Ashritha"]
[Result "1-0"]
[ECO "B33"]
[WhiteElo "2226"]
[BlackElo "2365"]
[Annotator "TA"]
[PlyCount "83"]
[EventDate "2022.09.05"]
[EventType "tourn"]
[EventCountry "USA"]
[SourceTitle "playchess.com"]
[Source "ChessBase"]
[SourceQuality "1"]
[TimeControl "40/5400+30:1800+30"]

{[%evp 16,83,20,7,6,0,8,0,23,14,16,8,15,21,5,14,0,0,14,0,0,-131,11,0,0,0,133,113,566,566,705,693,702,724,721,721,712,752,758,650,723,692,774,660,779,743,913,906,931,931,12837,12838,12836,12837,12835,12835,29974,29976,29980,29981,29981,29982,29982,29983,29986,29986,29986,29987,29987,12847]} 1. e4 {[%emt 0:00:02]} c5 {[%emt 0:00:21]} 2. Nf3 {[%emt 0:00:06]} Nc6 {[%emt 0:00:07]} 3. d4 {[%emt 0:00:06]} cxd4 {[%emt 0:00:06]} 4. Nxd4 {[%emt 0:00:06]} Nf6 {[%emt 0:00:28]} 5. Nc3 {[%emt 0:00:17]} e5 {[%emt 0:00:14]} 6. Ndb5 {[%emt 0:00:14]} d6 {[%emt 0:00:08]} 7. Nd5 {[%emt 0:00:11]} Nxd5 {[%emt 0:00:15]} 8. exd5 {[%emt 0:00:01]} Nb8 {[%emt 0:00:10]} 9. a4 {[%emt 0:00:13][%cal Ba2a4,Ba4a5][%mdl 32]} Be7 {[%emt 0:00:10] B33: Sicilian: Pelikan and Sveshnikov Variations.} 10. Bd2 {[%emt 0:01:46]} Nd7 {[%emt 0:00:51]} 11. Bb4 {[%emt 0:03:09]} O-O {[%emt 0:00:43] The position is equal.} 12. a5 {[%emt 0:06:33]} ({Not} 12. Nxd6 $2 Nf6 13. c4 Bxd6 $19) ({But not} 12. Bxd6 Bxd6 13. Nxd6 Nb6 14. Nxc8 Rxc8 $11) 12... e4 {[%emt 0:00:41][%cal Oe4e3] [#]} 13. Bxd6 $146 {[%emt 0:06:29]} ({Don't go for} 13. Nxd6 $2 Nf6 14. Be2 Bxd6 $19) ({Predecessor:} 13. Be2 a6 14. Nd4 Bf6 15. O-O Nc5 16. c3 Bd7 17. Bxc5 dxc5 18. Nb3 Qe7 19. Nd2 {½-½ (26) Eremin,V (2379)-Franke,H (2398) ICCF email 2019}) 13... Bxd6 {[%emt 0:00:10]} 14. Nxd6 {[%emt 0:00:10]} Nf6 {[%emt 0:00:08]} 15. Nxc8 {[%emt 0:02:40]} Rxc8 {[%emt 0:00:07]} 16. c4 {[%emt 0:01:14]} b5 $1 {[%emt 0:00:32]} 17. b3 {[%emt 0:20:11]} e3 {[%emt 0:06:30] aiming for ...Ne4.} 18. f3 {[%emt 0:06:29] [#] Prevents Ne4.} (18. Bd3 $11 {keeps the balance.}) 18... Qd6 {[%emt 0:04:27]} (18... Nxd5 $1 $17 {[%mdl 512]} 19. cxd5 Qh4+ 20. g3 Qb4+ 21. Ke2 Rc3) 19. Be2 $11 {[%emt 0:06:11]} Qb4+ {[%emt 0:07:45]} 20. Kf1 {[%emt 0:00:09][%cal Be1f1,Bf1g2,Bg2h1][%mdl 32]} Qc3 {[%emt 0:08:01] [#]} (20... Ne8 $11) 21. g3 $1 $16 {[%emt 0:04:19]} Ne4 $2 {[%emt 0:14:03][%mdl 8192] Black cannot hold the game after this.} 22. fxe4 $18 {[%emt 0:02:54]} f5 {[%emt 0:00:05]} 23. Kg2 {[%emt 0:09:11]} fxe4 {[%emt 0:01:39]} 24. Rf1 {[%emt 0:01:56] Against Rf2+} Rxf1 {[%emt 0:01:23]} 25. Bxf1 {[%emt 0:01:17]} Qb2+ {[%emt 0:00:04]} 26. Kh1 {[%emt 0:01:06]} Rf8 {[%emt 0:00:07]} 27. Qb1 {[%emt 0:04:28]} Qd4 {[%emt 0:12:14]} 28. Ra2 {[%emt 0:03:07]} h5 {[%emt 0:01:54]} 29. Qe1 {[%emt 0:03:53]} h4 {[%emt 0:02:30]} 30. gxh4 {[%emt 0:03:22]} bxc4 {[%emt 0:05:04]} 31. Bxc4 {[%emt 0:01:16]} Rf2 {[%emt 0:02:05]} 32. d6+ {[%emt 0:02:04]} Kh8 {[%emt 0:00:05]} 33. Rxf2 {[%emt 0:00:47]} exf2 {[%emt 0:00:05]} 34. Qe2 {[%emt 0:00:18][%cal Re2h5]} g6 {[%emt 0:00:51] Prevents Qh5+.} 35. Kg2 {[%emt 0:01:57]} e3 {[%emt 0:00:06]} 36. Qf3 {[%emt 0:00:43] White mates.} Qxd6 {[%emt 0:03:05]} 37. Qa8+ {[%emt 0:02:02]} Kg7 {[%emt 0:00:06]} 38. Qxa7+ {[%emt 0:00:05]} Kh8 {[%emt 0:00:23]} 39. Qxe3 {[%emt 0:00:11][%cal Re3h6]} g5 {[%emt 0:00:53]} 40. Qe8+ {[%emt 0:00:33]} Kg7 {[%emt 0:00:08]} 41. Qg8+ {[%emt 0:30:12]} Kh6 {[%emt 0:30:09]} 42. Qe6+ {[%emt 0:01:29] Weighted Error Value: White=0.16 (very precise) /Black=0.83} 1-0

[Event "USA Championship Women 2022"]
[Site "Saint Louis"]
[Date "2022.10.13"]
[Round "8.7"]
[White "Paikidze, Nazi"]
[Black "Lee, Alice"]
[Result "0-1"]
[ECO "C22"]
[WhiteElo "2354"]
[BlackElo "2263"]
[Annotator "TA"]
[PlyCount "104"]
[EventDate "2022.09.05"]
[EventType "tourn"]
[EventCountry "USA"]
[SourceTitle "playchess.com"]
[Source "ChessBase"]
[SourceQuality "1"]
[TimeControl "40/5400+30:1800+30"]

{[%evp 17,104,-49,-71,-55,-71,-60,-66,-83,-82,-78,-68,-100,-96,-102,-70,-58,-63,-64,0,-54,-52,-66,-72,-101,-88,-95,-79,-81,-74,-103,-85,-81,-79,-74,-61,-71,-70,-77,-68,-66,-12,-235,-246,-224,-221,-308,-315,-308,-307,-397,-396,-318,-302,-409,-406,-390,-253,-258,-237,-227,-198,-1486,-1468,-1224,-1110,-5766,-5668,-5189,-5065,-29975,-29976,-29944,-1854,-1825,-1825,-1749,-1752,-1722,-1667,-1704,-1679,-1630,-1596,-1345,-1281,-1064,-1027,-969,-966]} 1. e4 {[%emt 0:00:03]} e5 {[%emt 0:00:05]} 2. Nc3 {[%emt 0:02:16]} Nf6 {[%emt 0:00:27]} 3. d4 {[%emt 0:02:08]} exd4 {[%emt 0:01:33]} 4. Qxd4 {[%emt 0:00:04]} Nc6 {[%emt 0:00:31]} 5. Qe3 {[%emt 0:00:15]} Bb4 {[%emt 0:02:40]} 6. Bd2 {[%emt 0:02:13]} O-O {[%emt 0:00:10][%cal Bh8f8,Bf8e8,Be8e4][%mdl 32]} 7. O-O-O {[%emt 0:03:32]} Re8 {[%emt 0:00:07]} 8. Qg3 {[%emt 0:02:42]} Nxe4 {[%emt 0:00:17]} 9. Nxe4 {[%emt 0:00:22]} Rxe4 {[%emt 0:00:06]} 10. Bxb4 {[%emt 0:02:53] C22: Centre Game.} Nxb4 {[%emt 0:05:39]} 11. a3 {[%emt 0:01:02]} Nc6 {[%emt 0:00:12]} (11... Qf6 $2 12. axb4 d6 13. Qc3 $18) 12. Bd3 {[%emt 0:01:56] Black is slightly better.} Re8 {[%emt 0:05:02]} 13. Nf3 {[%emt 0:04:19]} d6 {[%emt 0:11:39] [#]} 14. h4 $146 {[%emt 0:19:18]} ({Predecessor:} 14. Ng5 g6 15. Qh4 h5 16. f4 Qf6 17. h3 Bf5 18. Bc4 Be6 19. Bd3 Nd4 20. Qf2 {1-0 (27) Khukhashvili,S (2334)-Zawadzka,J (2399) Tornelo INT 2020}) 14... Qf6 {[%emt 0:11:39]} 15. Qg5 {[%emt 0:03:36]} Qxg5+ {[%emt 0:18:42]} (15... Re6 {is more complex.} 16. Nd2 Ne5 17. Be4 h6) 16. hxg5 {[%emt 0:00:05]} g6 {[%emt 0:00:50]} 17. Nd2 {[%emt 0:18:18]} d5 {[%emt 0:06:57] Inhibits Ne4.} (17... Kg7 $1 $15) 18. Rh4 {[%emt 0:00:30]} (18. Bb5 $11) 18... Ne5 $15 {[%emt 0:03:35]} 19. Be2 {[%emt 0:04:09]} Nd7 {[%emt 0:01:46]} 20. Bf3 {[%emt 0:01:02]} Re5 {[%emt 0:01:24]} 21. c4 {[%emt 0:02:10]} c6 {[%emt 0:03:53]} 22. cxd5 {[%emt 0:05:58]} cxd5 {[%emt 0:00:04]} 23. Nb3 {[%emt 0:01:15]} Rxg5 {[%emt 0:08:02]} 24. Rxd5 {[%emt 0:05:02]} Rxd5 {[%emt 0:00:11]} (24... Ne5 {with more complications.} 25. Rd8+ Kg7 26. Be4 Nc6) 25. Bxd5 {[%emt 0:00:01]} Nf6 {[%emt 0:01:07]} 26. Bf3 {[%emt 0:00:31]} Rb8 {[%emt 0:06:38]} 27. Ra4 {[%emt 0:05:33]} a6 {[%emt 0:04:49]} 28. Nc5 {[%emt 0:01:24]} Bf5 {[%emt 0:01:26]} ({Black should try} 28... Kg7 $15) 29. Bxb7 $2 {[%emt 0:01:07] White does not recover from this.} (29. Nxb7 $11 {and White has nothing to worry.} Rc8+ 30. Kd2) 29... Nd7 $19 {[%emt 0:00:06]} 30. Nxd7 {[%emt 0:09:32]} Bxd7 {[%emt 0:00:02]} 31. Rxa6 {[%emt 0:00:52] [#] aiming for Bd5.} Rxb7 {[%emt 0:00:03][%mdl 4096] Endgame KRB-KR} 32. b4 {[%emt 0:00:23]} Bb5 {[%emt 0:00:48]} 33. Ra8+ {[%emt 0:01:03]} Kg7 {[%emt 0:00:02]} 34. g3 {[%emt 0:00:14]} Rc7+ {[%emt 0:01:06]} 35. Kb2 {[%emt 0:01:15]} h5 {[%emt 0:01:16]} 36. a4 {[%emt 0:00:21]} Bd3 {[%emt 0:00:40]} 37. Rd8 {[%emt 0:00:46]} Rc2+ {[%emt 0:01:40]} 38. Kb3 {[%emt 0:00:01]} Bf5 {[%emt 0:00:10]} 39. f4 {[%emt 0:00:21]} (39. a5) 39... Rg2 {[%emt 0:00:56]} 40. b5 {[%emt 0:00:04]} Rxg3+ {[%emt 0:00:22]} 41. Kb4 {[%emt 0:30:25]} h4 {[%emt 0:30:54]} 42. Re8 {[%emt 0:00:00]} h3 {[%emt 0:00:00] [#] ( -> ...h2)} 43. b6 {[%emt 0:00:00]} h2 {[%emt 0:00:00]} 44. b7 {[%emt 0:00:00]} h1=Q {[%emt 0:00:00]} (44... Rg1 $142 45. Rg8+ Kxg8 46. b8=Q+ Kh7 47. Ka5 h1=Q 48. Qe8 Qd5+ 49. Qb5 Qa8+ 50. Qa6 Qe4 51. Qb7 Qe8 52. Qb5 Bd7 53. Qb7 Qd8+ 54. Qb6 Qa8+ 55. Qa6 Qd5+ 56. Kb6 Rc1 57. Ka7 Rb1 58. Qb6 Rxb6 59. Kxb6 Qc6+ 60. Ka7 Bc8 61. Kb8 Qb7#) 45. b8=Q {[%emt 0:00:00] Black is clearly winning.} Qb1+ {[%emt 0:00:00]} 46. Ka5 {[%emt 0:00:00]} Qxb8 {[%emt 0:00:00]} 47. Rxb8 {[%emt 0:00:00] KRB-KR} Re3 {[%emt 0:00:00]} 48. Rd8 {[%emt 0:00:00]} Re4 {[%emt 0:00:00]} 49. Kb5 {[%emt 0:00:00]} Rxf4 {[%emt 0:00:00]} 50. a5 {[%emt 0:00:00]} Be4 {[%emt 0:00:00] And now ...g5 would win.} 51. a6 {[%emt 0:00:00]} Rh4 {[%emt 0:00:00]} 52. Re8 {[%emt 0:00:00]} Bd3+ {[%emt 0:00:00] Weighted Error Value: White=0.74/Black=0.25 (precise)} 0-1

[Event "USA Championship Women 2022"]
[Site "Saint Louis"]
[Date "2022.10.14"]
[Round "9.1"]
[White "Tokhirjonova, Gulrukhbegim"]
[Black "Lee, Megan"]
[Result "1-0"]
[ECO "D02"]
[WhiteElo "2336"]
[BlackElo "2226"]
[Annotator "TA"]
[PlyCount "111"]
[EventDate "2022.09.05"]
[EventType "tourn"]
[EventCountry "USA"]
[SourceTitle "playchess.com"]
[Source "ChessBase"]
[SourceQuality "1"]
[TimeControl "40/5400+30:1800+30"]

{[%evp 9,111,13,18,24,25,20,32,19,34,0,45,31,52,46,54,32,18,16,54,59,59,59,61,52,53,-16,-18,-9,0,-36,0,-27,-25,-2,0,-37,-38,-46,-6,-17,0,-20,-7,-13,0,-18,118,102,100,91,276,214,193,138,290,335,323,312,314,312,341,343,718,734,771,761,702,658,776,764,748,771,758,747,749,742,710,699,676,662,929,905,1277,1315,1170,1170,1064,1051,970,788,1789,1884,2252,2215,3295,2942,29965,10607,29976,29977,29978,29979,29981,29982]} 1. Nf3 {[%emt 0:00:13]} d5 {[%emt 0:00:04]} 2. g3 {[%emt 0:00:09]} g6 {[%emt 0:00:05]} 3. Bg2 {[%emt 0:00:14]} Bg7 {[%emt 0:00:06]} 4. d4 {[%emt 0:00:17]} Nf6 {[%emt 0:01:23]} 5. O-O {[%emt 0:00:46]} Ne4 {[%emt 0:04:16]} 6. c4 {[%emt 0:04:27] D02: 1 d4 d5 2 Nf3 sidelines, including 2...Nf6 3 g3 and 2...Nf6 3 Bf4.} c6 {[%emt 0:03:35]} 7. Nc3 {[%emt 0:01:27]} Nxc3 {[%emt 0:02:33]} 8. bxc3 {[%emt 0:00:59] White is slightly better.} dxc4 {[%emt 0:01:01]} 9. e4 {[%emt 0:03:11] [#]} Bg4 $146 {[%emt 0:04:14]} ({Predecessor:} 9... O-O 10. Qe2 b5 11. Ba3 Qc7 12. Rab1 Bb7 13. Rfd1 Re8 14. e5 e6 15. Bd6 Qc8 {½-½ (72) Aden,T (1722)-Ewert,S (1798) Verden 2019}) 10. Qe2 {[%emt 0:02:49]} b5 {[%emt 0:07:37][%cal Oe7e5]} 11. a4 {[%emt 0:01:39]} O-O {[%emt 0:09:35][%cal Oe7e5]} 12. axb5 {[%emt 0:02:17]} (12. e5 $5 {[%cal Ra4b5]}) 12... cxb5 {[%emt 0:00:16][%cal Oe7e5]} 13. e5 {[%emt 0:03:17] With the idea Qe4.} a5 {[%emt 0:08:08]} 14. Qe4 {[%emt 0:05:56][%csl LRa8,LRg4]} Bxf3 {[%emt 0:01:50]} 15. Bxf3 {[%emt 0:00:28]} Ra6 {[%emt 0:01:46]} 16. Ba3 {[%emt 0:08:07][%mdl 1024] And now Rfb1 would win. White has compensation. A strong pair of Bishops.} Nc6 {[%emt 0:12:23]} 17. Bc5 {[%emt 0:03:04]} ({White should play} 17. Rfb1 $14) 17... Qc7 $11 {[%emt 0:03:14][%cal Rc6e5] Hoping for ...Nxe5!} 18. Qe3 {[%emt 0:05:11]} Rb8 {[%emt 0:05:47]} 19. Rfb1 {[%emt 0:00:44]} Nd8 {[%emt 0:05:12]} (19... a4 $5 {[%cal Rc6a5]}) 20. Bd5 {[%emt 0:08:07]} Ne6 {[%emt 0:04:40]} 21. Ba3 {[%emt 0:00:53]} Qd8 {[%emt 0:02:51]} 22. Be4 {[%emt 0:03:35]} Nc7 {[%emt 0:01:23]} 23. Bc5 {[%emt 0:03:12]} e6 {[%emt 0:00:47]} 24. Qf3 $1 {[%emt 0:02:49] aiming for Bb7.} Qc8 {[%emt 0:02:14] Against Bb7} 25. h4 {[%emt 0:08:20][%cal Bh2h4,Bh4h5][%mdl 32]} Bf8 {[%emt 0:03:28]} 26. h5 $1 {[%emt 0:01:35]} Bxc5 {[%emt 0:01:43]} 27. dxc5 {[%emt 0:00:15]} Ne8 {[%emt 0:05:51]} (27... Nd5 $11) 28. c6 {[%emt 0:05:07] White is much more active.} Qc7 {[%emt 0:01:27]} 29. Qf4 {[%emt 0:01:12] Rd1 is the strong threat.} Ng7 $2 {[%emt 0:02:35]} (29... a4 $16 {was necessary.}) 30. hxg6 $40 {[%emt 0:00:41][%mdl 128] White attacks with force.} fxg6 {[%emt 0:00:35]} 31. Rd1 {[%emt 0:01:12] Strongly threatening Rd7.} Rd8 {[%emt 0:01:01] Inhibits Rd7. A mistake that costs the game.} (31... Rf8 $16 32. Qh6 Qxe5) 32. Qg5 $18 {[%emt 0:03:14]} Raa8 {[%emt 0:00:53]} (32... Rxd1+ $2 33. Rxd1 Ra8 34. Rd7 $18) 33. Rd7 {[%emt 0:01:25]} Rxd7 {[%emt 0:01:17]} 34. cxd7 {[%emt 0:00:02]} Rd8 {[%emt 0:00:38] [#]} 35. Bc6 {[%emt 0:00:59][%mdl 512]} Rxd7 $2 {[%emt 0:01:37]} (35... Rf8 36. Rd1 Qd8) (35... Qb6 36. Bxb5) 36. Bxd7 {[%emt 0:00:09]} Qxd7 {[%emt 0:00:01]} 37. Rxa5 {[%emt 0:00:57][%mdl 4096] Endgame KQR-KQN} Qd1+ {[%emt 0:01:19]} 38. Kh2 {[%emt 0:00:33]} Qd5 {[%emt 0:01:21] Inhibits Ra8+.} 39. Ra7 {[%emt 0:01:04] White wants to mate with Qe7.} Qf3 {[%emt 0:00:43]} 40. Qd8+ {[%emt 0:00:08]} Qf8 {[%emt 0:00:18]} 41. Qxf8+ {[%emt 0:30:21]} Kxf8 {[%emt 0:30:01] KR-KN} 42. Rb7 {[%emt 0:00:10]} Nf5 {[%emt 0:00:00]} 43. Rxb5 {[%emt 0:00:00]} Ne7 {[%emt 0:00:00]} 44. Rc5 {[%emt 0:00:00]} Nd5 {[%emt 0:00:00]} 45. Rxc4 {[%emt 0:00:00]} Ke7 {[%emt 0:00:00]} 46. Rc6 {[%emt 0:00:00]} Kd7 {[%emt 0:00:00]} 47. Rd6+ {[%emt 0:00:00]} Ke7 {[%emt 0:00:00]} 48. c4 {[%emt 0:00:00]} Nc3 {[%emt 0:00:00]} 49. Ra6 {[%emt 0:00:00]} Kd7 {[%emt 0:00:00]} 50. Ra7+ {[%emt 0:00:00]} Kc6 {[%emt 0:00:00]} 51. Rxh7 {[%emt 0:00:00]} Ne4 {[%emt 0:00:00]} 52. f4 {[%emt 0:00:00]} g5 {[%emt 0:00:00]} 53. Re7 {[%emt 0:00:00]} gxf4 {[%emt 0:00:00]} 54. gxf4 {[%emt 0:00:00] White mates.} Kc5 {[%emt 0:00:00]} 55. Rxe6 {[%emt 0:00:00]} Kxc4 {[%emt 0:00:00] [#]} 56. Rd6 $1 {[%emt 0:00:00] Weighted Error Value: White=0.14 (very precise) /Black=0.32} 1-0

[Event "USA Championship Women 2022"]
[Site "Saint Louis"]
[Date "2022.10.14"]
[Round "9.2"]
[White "Wu, Rochelle"]
[Black "Paikidze, Nazi"]
[Result "1/2-1/2"]
[ECO "A53"]
[WhiteElo "2317"]
[BlackElo "2354"]
[Annotator "TA"]
[PlyCount "62"]
[EventDate "2022.09.05"]
[EventType "tourn"]
[EventCountry "USA"]
[SourceTitle "playchess.com"]
[Source "ChessBase"]
[SourceQuality "1"]
[TimeControl "40/5400+30:1800+30"]

{[%evp 13,62,-22,-37,-29,-30,-43,-20,-19,0,0,0,-21,0,-18,-17,-32,-23,-43,-36,-42,0,0,0,0,0,0,0,0,0,0,0,0,0,0,0,0,0,0,0,0,0,0,0,0,0,-6,0,0,0,-21,0]} 1. d4 {[%emt 0:00:04]} Nf6 {[%emt 0:00:07]} 2. c4 {[%emt 0:00:07]} d6 {[%emt 0:00:04]} 3. Nc3 {[%emt 0:00:35]} e5 {[%emt 0:00:08]} 4. dxe5 {[%emt 0:06:18]} dxe5 {[%emt 0:00:05]} 5. Qxd8+ {[%emt 0:00:08]} Kxd8 {[%emt 0:00:04]} 6. Bg5 {[%emt 0:03:59]} Nbd7 {[%emt 0:04:30]} 7. O-O-O {[%emt 0:02:21]} c6 {[%emt 0:00:45]} 8. e3 {[%emt 0:00:58] A53: Old Indian Defence without Nf3.} Kc7 {[%emt 0:02:33]} 9. Bd3 {[%emt 0:00:07]} Nc5 {[%emt 0:09:41]} (9... Bb4 $5 {[%cal Rb4c3]}) 10. Bc2 {[%emt 0:01:00]} Be6 {[%emt 0:13:54]} 11. b3 {[%emt 0:11:16] [#]} Nfd7 $146 {[%emt 0:03:09]} ({Predecessor:} 11... a5 12. Nge2 a4 13. Kb2 Be7 14. f4 h6 15. Bh4 g5 16. Bg3 axb3 17. axb3 Nh5 {1-0 (33) Lysenko,M (2064)-Sosnina,E (1800) Ekaterinburg 2019}) 12. Kb2 {[%emt 0:07:31]} f5 {[%emt 0:04:55] [#] aiming for ...h6.} 13. f4 {[%emt 0:03:43]} e4 {[%emt 0:12:13]} 14. Nge2 {[%emt 0:01:27]} g6 {[%emt 0:03:37]} 15. Rd2 {[%emt 0:01:17]} Bg7 {[%emt 0:09:34]} 16. Rhd1 {[%emt 0:07:50]} Nf6 {[%emt 0:04:47]} 17. Nd4 {[%emt 0:06:58] [#] Black must now prevent b4. The position is equal.} Rae8 {[%emt 0:05:21]} 18. b4 {[%emt 0:08:41]} Nd3+ {[%emt 0:01:23]} 19. Bxd3 {[%emt 0:01:29]} exd3 {[%emt 0:00:04]} 20. Nxe6+ {[%emt 0:02:05]} Rxe6 {[%emt 0:00:08]} 21. Rxd3 {[%emt 0:00:08][%cal Bd2d3,Bd3d7,Bd7f7,Bf7f6][%mdl 32]} Rhe8 {[%emt 0:01:19]} 22. Bxf6 {[%emt 0:01:41]} Bxf6 {[%emt 0:00:23]} 23. Rd7+ {[%emt 0:00:33]} Kc8 {[%emt 0:02:06]} 24. Rf7 {[%emt 0:02:08]} ({Not} 24. Rxh7 $2 Rxe3 25. Rdd7 (25. Rc1 $2 Rxc3 26. Rxc3 Re3 $19) 25... Rh8 26. Rc7+ Kd8 27. Rcd7+ Ke8 28. Rxb7 (28. Rxh8+ $2 Kxd7 29. Rh7+ Kc8 $19) 28... Bxc3+ 29. Kc2 Rxh7 30. Rxh7 Bxb4 31. Rxa7 Re2+ 32. Kb3 Be7 $19) 24... Bxc3+ {[%emt 0:12:08]} 25. Kxc3 {[%emt 0:00:05]} Rxe3+ $11 {[%emt 0:00:08][%mdl 4096] Endgame KRR-KRR} 26. Rd3 {[%emt 0:00:52]} R3e7 {[%emt 0:00:01]} 27. Rf6 {[%emt 0:00:51]} Re6 {[%emt 0:00:27]} 28. Rf7 {[%emt 0:00:05]} R6e7 {[%emt 0:00:04]} 29. Rf6 {[%emt 0:00:05]} Re6 {[%emt 0:00:02]} 30. Rf7 {[%emt 0:00:04]} R6e7 {[%emt 0:00:09]} 31. Rf6 {[%emt 0:00:05]} Re6 {[%emt 0:00:06] Weighted Error Value: White=0.05 (flawless) /Black=0.07 (flawless)} 1/2-1/2